[Event "Late-Titled-Tuesday-Blitz-September-26-2023"]
[Site "Chess.com"]
[Date "2023.09.26"]
[Round "2"]
[White "Roedor"]
[Black "dennisodessa"]
[Result "1-0"]
[WhiteElo "2358"]
[BlackElo "2530"]
[TimeControl "180+1"]
[EndTime "14:18:29 PDT"]
[Termination "Roedor won by resignation"]

1. d4 {[%clk 0:03:00.9]} 1... e6 {[%clk 0:03:00.9]} 2. c4 {[%clk 0:02:58.8]}
2... Nf6 {[%clk 0:03:01]} 3. g3 {[%clk 0:02:59]} 3... Bb4+ {[%clk 0:03:01.4]} 4.
Nd2 {[%clk 0:02:57.9]} 4... O-O {[%clk 0:02:59.8]} 5. Bg2 {[%clk 0:02:58.2]}
5... c5 {[%clk 0:02:59.4]} 6. Nf3 {[%clk 0:02:57.3]} 6... cxd4 {[%clk
0:02:58.8]} 7. Nxd4 {[%clk 0:02:58.2]} 7... Nc6 {[%clk 0:02:59.4]} 8. Nc2 {[%clk
0:02:57.7]} 8... Be7 {[%clk 0:02:57.9]} 9. O-O {[%clk 0:02:56.3]} 9... d5 {[%clk
0:02:58.5]} 10. cxd5 {[%clk 0:02:57.2]} 10... Nxd5 {[%clk 0:02:57.1]} 11. Ne4
{[%clk 0:02:54.9]} 11... b6 {[%clk 0:02:56.9]} 12. Nd4 {[%clk 0:02:41.4]} 12...
Bb7 {[%clk 0:02:54.4]} 13. Nxc6 {[%clk 0:02:38.9]} 13... Bxc6 {[%clk 0:02:55.3]}
14. Bd2 {[%clk 0:02:36.9]} 14... Rc8 {[%clk 0:02:53.5]} 15. Nc3 {[%clk
0:02:36.8]} 15... Bf6 {[%clk 0:02:48.8]} 16. Nxd5 {[%clk 0:02:36]} 16... Bxd5
{[%clk 0:02:49.7]} 17. Bxd5 {[%clk 0:02:35.9]} 17... Qxd5 {[%clk 0:02:50.6]} 18.
Bb4 {[%clk 0:01:41.9]} 18... Rfd8 {[%clk 0:02:33.5]} 19. Qxd5 {[%clk 0:01:14]}
19... exd5 {[%clk 0:02:30.6]} 20. Ba3 {[%clk 0:01:09.5]} 20... Rc2 {[%clk
0:02:29.4]} 21. e3 {[%clk 0:01:07.8]} 21... Bxb2 {[%clk 0:02:28.7]} 22. Bxb2
{[%clk 0:01:07.6]} 22... Rxb2 {[%clk 0:02:29.6]} 23. a4 {[%clk 0:01:07.8]} 23...
g6 {[%clk 0:02:17.1]} 24. Rfc1 {[%clk 0:01:05.6]} 24... d4 {[%clk 0:02:13.5]}
25. Rd1 {[%clk 0:00:59.6]} 25... d3 {[%clk 0:02:06.6]} 26. Ra3 {[%clk
0:00:56.7]} 26... d2 {[%clk 0:01:59.2]} 27. Kf1 {[%clk 0:00:54.7]} 27... Kg7
{[%clk 0:01:45.5]} 28. g4 {[%clk 0:00:51.9]} 28... h5 {[%clk 0:01:39.4]} 29.
gxh5 {[%clk 0:00:47.8]} 29... gxh5 {[%clk 0:01:40.3]} 30. Ke2 {[%clk 0:00:48.3]}
30... Kg6 {[%clk 0:01:28]} 31. e4 {[%clk 0:00:45.5]} 31... Kg5 {[%clk
0:01:17.3]} 32. Rf3 {[%clk 0:00:34.8]} 32... f6 {[%clk 0:01:14.7]} 33. Rg1+
{[%clk 0:00:32]} 33... Kh6 {[%clk 0:01:06.9]} 34. Rxf6+ {[%clk 0:00:30.5]} 34...
Kh7 {[%clk 0:01:07.8]} 35. Rf7+ {[%clk 0:00:30.1]} 35... Kh8 {[%clk 0:01:08.4]}
36. Rd1 {[%clk 0:00:30]} 36... a5 {[%clk 0:01:06.4]} 37. e5 {[%clk 0:00:17.7]}
37... Rb4 {[%clk 0:01:04.1]} 38. Rxd2 {[%clk 0:00:15.5]} 38... Re4+ {[%clk
0:01:03.6]} 39. Kd1 {[%clk 0:00:13.9]} 39... Rxd2+ {[%clk 0:01:03.2]} 40. Kxd2
{[%clk 0:00:14.8]} 40... Rxe5 {[%clk 0:01:04.1]} 41. Rb7 {[%clk 0:00:13.3]}
41... Re4 {[%clk 0:01:02.8]} 42. Rxb6 {[%clk 0:00:12.9]} 42... Rxa4 {[%clk
0:01:03.1]} 43. Rh6+ {[%clk 0:00:12.6]} 43... Kg7 {[%clk 0:01:02.2]} 44. Rxh5
{[%clk 0:00:13.2]} 44... Kg6 {[%clk 0:01:01.3]} 45. Rb5 {[%clk 0:00:13.5]} 45...
Ra2+ {[%clk 0:01:01.6]} 46. Ke3 {[%clk 0:00:13.5]} 46... a4 {[%clk 0:01:02.3]}
47. h4 {[%clk 0:00:13.4]} 47... a3 {[%clk 0:01:02]} 48. Ra5 {[%clk 0:00:12.2]}
48... Ra1 {[%clk 0:01:01.7]} 49. Kf4 {[%clk 0:00:11.1]} 49... a2 {[%clk
0:01:01.1]} 50. h5+ {[%clk 0:00:10.5]} 50... Kh6 {[%clk 0:01:01]} 51. f3 {[%clk
0:00:11]} 51... Kg7 {[%clk 0:00:51.8]} 52. Ra6 {[%clk 0:00:11.2]} 52... Kf7
{[%clk 0:00:46.2]} 53. h6 {[%clk 0:00:10.7]} 53... Rh1 {[%clk 0:00:41.7]} 54.
Ra7+ {[%clk 0:00:10.5]} 54... Kf6 {[%clk 0:00:41.4]} 55. Rxa2 {[%clk 0:00:10.2]}
55... Rh4+ {[%clk 0:00:41.2]} 56. Ke3 {[%clk 0:00:08.8]} 56... Rxh6 {[%clk
0:00:42.1]} 57. Ra6+ {[%clk 0:00:08.6]} 57... Kg7 {[%clk 0:00:42.2]} 58. Rxh6
{[%clk 0:00:08.9]} 58... Kxh6 {[%clk 0:00:43.1]} 59. Kf4 {[%clk 0:00:09.1]}
59... Kg6 {[%clk 0:00:43.8]} 60. Ke5 {[%clk 0:00:09.4]} 60... Kf7 {[%clk
0:00:44.4]} 61. Kf5 {[%clk 0:00:09.9]} 61... Kg7 {[%clk 0:00:44.4]} 62. Ke6
{[%clk 0:00:10.1]} 1-0

[Event "Late-Titled-Tuesday-Blitz-September-26-2023"]
[Site "Chess.com"]
[Date "2023.09.26"]
[Round "2"]
[White "Rainbow2014"]
[Black "kai_nov"]
[Result "1-0"]
[WhiteElo "2466"]
[BlackElo "2237"]
[TimeControl "180+1"]
[EndTime "14:18:33 PDT"]
[Termination "Rainbow2014 won on time"]

1. e4 {[%clk 0:02:55.9]} 1... c5 {[%clk 0:02:59.5]} 2. Nf3 {[%clk 0:02:51.9]}
2... Nc6 {[%clk 0:02:59.3]} 3. Bb5 {[%clk 0:02:49.2]} 3... e6 {[%clk 0:02:58.9]}
4. O-O {[%clk 0:02:45.7]} 4... Nge7 {[%clk 0:02:57.5]} 5. c3 {[%clk 0:02:43.8]}
5... a6 {[%clk 0:02:35.7]} 6. Ba4 {[%clk 0:02:38.5]} 6... b5 {[%clk 0:02:32.7]}
7. Bc2 {[%clk 0:02:36.4]} 7... Bb7 {[%clk 0:02:26.3]} 8. Re1 {[%clk 0:02:31.1]}
8... Ng6 {[%clk 0:02:18.1]} 9. d3 {[%clk 0:02:24.6]} 9... Be7 {[%clk 0:02:13.4]}
10. Nbd2 {[%clk 0:02:23.7]} 10... Qc7 {[%clk 0:02:06.4]} 11. Nf1 {[%clk
0:02:20.8]} 11... Rc8 {[%clk 0:02:02.7]} 12. Ng3 {[%clk 0:02:08.8]} 12... O-O
{[%clk 0:02:01.7]} 13. a4 {[%clk 0:01:57.3]} 13... b4 {[%clk 0:01:43.5]} 14. Bd2
{[%clk 0:01:51]} 14... a5 {[%clk 0:01:36.6]} 15. Bb3 {[%clk 0:01:50.1]} 15...
Ba6 {[%clk 0:01:32.7]} 16. d4 {[%clk 0:01:50.1]} 16... cxd4 {[%clk 0:01:27.7]}
17. cxd4 {[%clk 0:01:49.9]} 17... Nf4 {[%clk 0:01:15.5]} 18. d5 {[%clk
0:01:43.8]} 18... Na7 {[%clk 0:01:01.5]} 19. Bxf4 {[%clk 0:01:21]} 19... Qxf4
{[%clk 0:01:00.7]} 20. Qd4 {[%clk 0:01:18.5]} 20... Bc5 {[%clk 0:00:56.1]} 21.
Qe5 {[%clk 0:01:14.7]} 21... Qh6 {[%clk 0:00:44.8]} 22. Rad1 {[%clk 0:00:56.7]}
22... d6 {[%clk 0:00:34.2]} 23. Qh5 {[%clk 0:00:55.3]} 23... Qxh5 {[%clk
0:00:29.8]} 24. Nxh5 {[%clk 0:00:56.2]} 24... e5 {[%clk 0:00:30.1]} 25. Ng3
{[%clk 0:00:55.5]} 25... g6 {[%clk 0:00:29.8]} 26. Rc1 {[%clk 0:00:51.4]} 26...
Rc7 {[%clk 0:00:23.3]} 27. Nd2 {[%clk 0:00:41.9]} 27... Nc8 {[%clk 0:00:20.5]}
28. Bc4 {[%clk 0:00:39.2]} 28... Bb7 {[%clk 0:00:14]} 29. Bb5 {[%clk 0:00:36.6]}
29... Nb6 {[%clk 0:00:14.3]} 30. b3 {[%clk 0:00:34.2]} 30... Rfc8 {[%clk
0:00:13.2]} 31. Kf1 {[%clk 0:00:33]} 31... Rf8 {[%clk 0:00:10.8]} 32. Nc4 {[%clk
0:00:32.1]} 32... Nxc4 {[%clk 0:00:09.5]} 33. Rxc4 {[%clk 0:00:33]} 33... f5
{[%clk 0:00:09.5]} 34. f3 {[%clk 0:00:31.2]} 34... f4 {[%clk 0:00:06.8]} 35. Ne2
{[%clk 0:00:29.8]} 35... Bc8 {[%clk 0:00:07.1]} 36. Rec1 {[%clk 0:00:29.5]}
36... Rg7 {[%clk 0:00:06.7]} 37. R1c2 {[%clk 0:00:28.8]} 37... g5 {[%clk
0:00:06.6]} 38. h3 {[%clk 0:00:27.7]} 38... h5 {[%clk 0:00:06.7]} 39. Nc1 {[%clk
0:00:25]} 39... g4 {[%clk 0:00:06.9]} 40. hxg4 {[%clk 0:00:24.9]} 40... hxg4
{[%clk 0:00:06.8]} 41. Rxc5 {[%clk 0:00:16.6]} 41... dxc5 {[%clk 0:00:05.2]} 42.
Rxc5 {[%clk 0:00:17.5]} 42... gxf3 {[%clk 0:00:05.6]} 43. gxf3 {[%clk
0:00:18.4]} 43... Bh3+ {[%clk 0:00:05.7]} 44. Ke2 {[%clk 0:00:19]} 44... Rg2+
{[%clk 0:00:05.5]} 45. Kd3 {[%clk 0:00:19.6]} 45... Rf7 {[%clk 0:00:03.4]} 46.
Bc6 {[%clk 0:00:14.1]} 46... Rg1 {[%clk 0:00:03.4]} 47. d6 {[%clk 0:00:13.3]}
47... Rd1+ {[%clk 0:00:02.5]} 48. Kc4 {[%clk 0:00:12.2]} 48... Bf1+ {[%clk
0:00:01.9]} 49. Nd3 {[%clk 0:00:09.7]} 49... Bxd3+ {[%clk 0:00:02.3]} 50. Kd5
{[%clk 0:00:10.3]} 50... Bc2+ {[%clk 0:00:01.9]} 51. Kxe5 {[%clk 0:00:09.9]}
51... Bxb3 {[%clk 0:00:01.9]} 52. d7 {[%clk 0:00:09.4]} 52... Rfxd7 {[%clk
0:00:02.1]} 53. Bxd7 {[%clk 0:00:09.9]} 53... Rxd7 {[%clk 0:00:02.3]} 54. Rxa5
{[%clk 0:00:10.5]} 54... Bd1 {[%clk 0:00:01.3]} 55. Rb5 {[%clk 0:00:10.1]} 1-0

[Event "Late-Titled-Tuesday-Blitz-September-26-2023"]
[Site "Chess.com"]
[Date "2023.09.26"]
[Round "2"]
[White "Mesa_1"]
[Black "vanyakuba"]
[Result "1/2-1/2"]
[WhiteElo "2643"]
[BlackElo "2387"]
[TimeControl "180+1"]
[EndTime "14:18:41 PDT"]
[Termination "Game drawn by repetition"]

1. d4 {[%clk 0:03:00.9]} 1... d5 {[%clk 0:02:59.8]} 2. Nf3 {[%clk 0:02:59]} 2...
c5 {[%clk 0:02:59.2]} 3. e3 {[%clk 0:02:55.5]} 3... Nf6 {[%clk 0:02:57.6]} 4.
dxc5 {[%clk 0:02:54.8]} 4... e6 {[%clk 0:02:56.5]} 5. b4 {[%clk 0:02:54.9]} 5...
a5 {[%clk 0:02:56.5]} 6. c3 {[%clk 0:02:54.1]} 6... b6 {[%clk 0:02:44.6]} 7.
cxb6 {[%clk 0:02:51.7]} 7... axb4 {[%clk 0:02:43.6]} 8. Qd4 {[%clk 0:02:51.5]}
8... Nbd7 {[%clk 0:02:08.7]} 9. Bb5 {[%clk 0:02:36.4]} 9... Bd6 {[%clk
0:01:57.5]} 10. cxb4 {[%clk 0:02:32.2]} 10... O-O {[%clk 0:01:52.6]} 11. a4
{[%clk 0:01:46.2]} 11... e5 {[%clk 0:01:41.1]} 12. Qb2 {[%clk 0:01:40.4]} 12...
Qxb6 {[%clk 0:01:25.3]} 13. O-O {[%clk 0:01:40.9]} 13... e4 {[%clk 0:01:15.6]}
14. Nd4 {[%clk 0:01:33.2]} 14... Ne5 {[%clk 0:01:15.5]} 15. h3 {[%clk
0:01:27.2]} 15... Nd3 {[%clk 0:00:24.5]} 16. Bxd3 {[%clk 0:01:23.9]} 16... exd3
{[%clk 0:00:25.4]} 17. Bd2 {[%clk 0:01:21.1]} 17... Ne4 {[%clk 0:00:23.9]} 18.
a5 {[%clk 0:01:17.2]} 18... Qd8 {[%clk 0:00:22.8]} 19. Qb3 {[%clk 0:01:05]}
19... Qg5 {[%clk 0:00:19]} 20. Nf3 {[%clk 0:00:53.4]} 20... Qh5 {[%clk
0:00:19.2]} 21. Nc3 {[%clk 0:00:33.5]} 21... Nxd2 {[%clk 0:00:13.4]} 22. Nxd2
{[%clk 0:00:31.7]} 22... Bxh3 {[%clk 0:00:13.9]} 23. Qxd5 {[%clk 0:00:27.8]}
23... Qg6 {[%clk 0:00:07.9]} 24. Qe4 {[%clk 0:00:20.5]} 24... Bf5 {[%clk
0:00:07]} 25. Qf3 {[%clk 0:00:19.1]} 25... Qh6 {[%clk 0:00:03.5]} 26. g3 {[%clk
0:00:19]} 26... Be6 {[%clk 0:00:03.2]} 27. Nce4 {[%clk 0:00:19]} 27... Bxb4
{[%clk 0:00:03.3]} 28. Kg2 {[%clk 0:00:18.7]} 28... Bxa5 {[%clk 0:00:03.7]} 29.
Rh1 {[%clk 0:00:18.6]} 29... Qg6 {[%clk 0:00:02.9]} 30. Ra4 {[%clk 0:00:14.1]}
30... Bd5 {[%clk 0:00:03]} 31. Rh4 {[%clk 0:00:13.3]} 31... Bxd2 {[%clk
0:00:03]} 32. Rxa8 {[%clk 0:00:12]} 32... Rxa8 {[%clk 0:00:02.6]} 33. Nf6+
{[%clk 0:00:12.2]} 33... Qxf6 {[%clk 0:00:02.6]} 34. Qxd5 {[%clk 0:00:13.1]}
34... Rf8 {[%clk 0:00:02.2]} 35. Rf4 {[%clk 0:00:13.6]} 35... Qe6 {[%clk
0:00:02.3]} 36. Qxd3 {[%clk 0:00:14]} 36... Be1 {[%clk 0:00:02.1]} 37. Qb1
{[%clk 0:00:12.7]} 37... Qg6 {[%clk 0:00:02.4]} 38. Qxe1 {[%clk 0:00:11.7]}
38... Qc6+ {[%clk 0:00:03.1]} 39. e4 {[%clk 0:00:11.3]} 39... Qe6 {[%clk
0:00:03.6]} 40. Qe3 {[%clk 0:00:11.8]} 40... g6 {[%clk 0:00:04.1]} 41. Qf3
{[%clk 0:00:12.4]} 41... f6 {[%clk 0:00:04.4]} 42. Qe3 {[%clk 0:00:12]} 42...
Kg7 {[%clk 0:00:04.8]} 43. Rh4 {[%clk 0:00:12.1]} 43... Kg8 {[%clk 0:00:04.4]}
44. Rf4 {[%clk 0:00:11.4]} 44... Rf7 {[%clk 0:00:04.6]} 45. Qf3 {[%clk
0:00:11.7]} 45... Qe5 {[%clk 0:00:04.7]} 46. Qb3 {[%clk 0:00:10.8]} 46... Kg7
{[%clk 0:00:04.8]} 47. Qd3 {[%clk 0:00:10.2]} 47... Re7 {[%clk 0:00:05.1]} 48.
Rh4 {[%clk 0:00:10.3]} 48... h5 {[%clk 0:00:04.9]} 49. Qe3 {[%clk 0:00:10.1]}
49... g5 {[%clk 0:00:04.9]} 50. Rxh5 {[%clk 0:00:10.6]} 50... Qxe4+ {[%clk
0:00:05.4]} 51. Qxe4 {[%clk 0:00:11.2]} 51... Rxe4 {[%clk 0:00:06.2]} 52. Rh1
{[%clk 0:00:11.8]} 52... Ra4 {[%clk 0:00:05.9]} 53. Rb1 {[%clk 0:00:12.3]} 53...
Ra2 {[%clk 0:00:06.1]} 54. Rb7+ {[%clk 0:00:12.7]} 54... Kg6 {[%clk 0:00:06.7]}
55. Kf3 {[%clk 0:00:13]} 55... Ra3+ {[%clk 0:00:06.9]} 56. Kg2 {[%clk
0:00:13.2]} 56... Ra2 {[%clk 0:00:07.3]} 57. Rd7 {[%clk 0:00:13.7]} 57... Rb2
{[%clk 0:00:07.2]} 58. Ra7 {[%clk 0:00:14.1]} 58... Rc2 {[%clk 0:00:07.1]} 59.
Rb7 {[%clk 0:00:14.6]} 59... Ra2 {[%clk 0:00:07]} 1/2-1/2

[Event "Late-Titled-Tuesday-Blitz-September-26-2023"]
[Site "Chess.com"]
[Date "2023.09.26"]
[Round "2"]
[White "sergoy"]
[Black "AsaHoffmann"]
[Result "1-0"]
[WhiteElo "2944"]
[BlackElo "2396"]
[TimeControl "180+1"]
[EndTime "14:18:41 PDT"]
[Termination "sergoy won by resignation"]

1. d4 {[%clk 0:03:00.9]} 1... Nf6 {[%clk 0:02:53.3]} 2. c4 {[%clk 0:03:01.5]}
2... c5 {[%clk 0:02:53]} 3. d5 {[%clk 0:03:01.6]} 3... e5 {[%clk 0:02:52.8]} 4.
Nc3 {[%clk 0:03:00.1]} 4... d6 {[%clk 0:02:52.6]} 5. Nf3 {[%clk 0:03:00.5]} 5...
Be7 {[%clk 0:02:52.1]} 6. a3 {[%clk 0:02:58.6]} 6... Nbd7 {[%clk 0:02:51.8]} 7.
b4 {[%clk 0:02:59]} 7... b6 {[%clk 0:02:51.5]} 8. e4 {[%clk 0:02:58]} 8... Nf8
{[%clk 0:02:51.3]} 9. g3 {[%clk 0:02:56.9]} 9... Ng6 {[%clk 0:02:48]} 10. h4
{[%clk 0:02:57.3]} 10... O-O {[%clk 0:02:42.7]} 11. h5 {[%clk 0:02:56.7]} 11...
Nh8 {[%clk 0:02:42.6]} 12. h6 {[%clk 0:02:57.4]} 12... g6 {[%clk 0:02:39.7]} 13.
Be2 {[%clk 0:02:57.6]} 13... Ne8 {[%clk 0:02:37.6]} 14. Be3 {[%clk 0:02:55.8]}
14... f5 {[%clk 0:02:35.9]} 15. exf5 {[%clk 0:02:56.6]} 15... Bxf5 {[%clk
0:02:34.6]} 16. Nd2 {[%clk 0:02:55.2]} 16... Nf6 {[%clk 0:02:31.5]} 17. g4
{[%clk 0:02:53.5]} 17... Bd7 {[%clk 0:02:30]} 18. g5 {[%clk 0:02:50.6]} 18...
Ne8 {[%clk 0:02:28.8]} 19. Nde4 {[%clk 0:02:51.2]} 19... Bf5 {[%clk 0:02:24.5]}
20. bxc5 {[%clk 0:02:45.5]} 20... bxc5 {[%clk 0:02:23.9]} 21. Rb1 {[%clk
0:02:43.6]} 21... Qa5 {[%clk 0:02:18.8]} 22. Bd2 {[%clk 0:02:36.2]} 22... Nf7
{[%clk 0:02:11.2]} 23. Rb7 {[%clk 0:02:34]} 23... Qd8 {[%clk 0:02:08.8]} 24. Rg1
{[%clk 0:02:25.7]} 24... a6 {[%clk 0:02:06.5]} 25. Qa4 {[%clk 0:02:24.7]} 25...
Rb8 {[%clk 0:02:02.6]} 26. Qxa6 {[%clk 0:02:22.2]} 26... Rxb7 {[%clk 0:02:02]}
27. Qxb7 {[%clk 0:02:22.2]} 27... Qc7 {[%clk 0:01:54.3]} 28. Qxc7 {[%clk
0:02:06.6]} 28... Nxc7 {[%clk 0:01:54]} 29. f3 {[%clk 0:02:02.9]} 29... Ra8
{[%clk 0:01:52.7]} 30. a4 {[%clk 0:02:01.1]} 30... Bd7 {[%clk 0:01:50.5]} 31.
Bd1 {[%clk 0:01:59]} 31... Na6 {[%clk 0:01:49.3]} 32. Nb5 {[%clk 0:01:55.5]}
32... Nb4 {[%clk 0:01:47.4]} 33. Ke2 {[%clk 0:01:55.1]} 33... Rc8 {[%clk
0:01:17]} 34. Bb3 {[%clk 0:01:46.2]} 34... Rb8 {[%clk 0:01:14.9]} 35. Bxb4
{[%clk 0:01:33.3]} 35... cxb4 {[%clk 0:01:14.1]} 36. c5 {[%clk 0:01:33.8]} 36...
Bxb5+ {[%clk 0:01:11.6]} 37. axb5 {[%clk 0:01:33.7]} 37... dxc5 {[%clk 0:01:03]}
38. d6 {[%clk 0:01:34]} 38... Bd8 {[%clk 0:01:02.4]} 39. Ra1 {[%clk 0:01:32.5]}
39... Kf8 {[%clk 0:00:51.8]} 40. Nxc5 {[%clk 0:01:32.8]} 40... Rxb5 {[%clk
0:00:49.8]} 41. Ne6+ {[%clk 0:01:33]} 41... Ke8 {[%clk 0:00:48.7]} 42. Ra8
{[%clk 0:01:00.6]} 42... Nxd6 {[%clk 0:00:46]} 43. Nxd8 {[%clk 0:00:46.9]} 43...
Ke7 {[%clk 0:00:36.1]} 44. Nc6+ {[%clk 0:00:40.6]} 44... Kd7 {[%clk 0:00:35.6]}
45. Na5 {[%clk 0:00:30.9]} 45... Kc7 {[%clk 0:00:31.2]} 46. Nc4 {[%clk
0:00:30.8]} 46... Nxc4 {[%clk 0:00:29.8]} 47. Bxc4 {[%clk 0:00:31.7]} 47... Rc5
{[%clk 0:00:30.2]} 48. Kd3 {[%clk 0:00:31]} 48... e4+ {[%clk 0:00:29.3]} 49.
fxe4 {[%clk 0:00:30.8]} 49... Rxg5 {[%clk 0:00:29]} 50. Ra7+ {[%clk 0:00:31]}
50... Kb6 {[%clk 0:00:29]} 51. Rxh7 {[%clk 0:00:31.5]} 51... Kc5 {[%clk
0:00:28.7]} 52. Rc7+ {[%clk 0:00:29.6]} 52... Kb6 {[%clk 0:00:28.3]} 53. h7
{[%clk 0:00:24.5]} 53... Rh5 {[%clk 0:00:27.3]} 54. Rg7 {[%clk 0:00:20]} 54...
Kc5 {[%clk 0:00:26.5]} 55. Be6 {[%clk 0:00:15]} 55... b3 {[%clk 0:00:25]} 56.
Bxb3 {[%clk 0:00:14.3]} 56... Rh3+ {[%clk 0:00:24.7]} 57. Kc2 {[%clk 0:00:14.7]}
57... Kd4 {[%clk 0:00:24.9]} 58. Bd5 {[%clk 0:00:14.9]} 58... Ke5 {[%clk
0:00:24.1]} 59. Bg8 {[%clk 0:00:14.2]} 59... Kf6 {[%clk 0:00:23.7]} 60. Rf7+
{[%clk 0:00:14.5]} 60... Ke5 {[%clk 0:00:23.1]} 61. Rf8 {[%clk 0:00:14.1]} 61...
g5 {[%clk 0:00:22.8]} 62. Kd2 {[%clk 0:00:12.4]} 62... g4 {[%clk 0:00:22.8]} 63.
Ke2 {[%clk 0:00:13]} 63... g3 {[%clk 0:00:22.9]} 64. Kf3 {[%clk 0:00:12.7]}
64... Kd4 {[%clk 0:00:21.4]} 65. Kg2 {[%clk 0:00:12.5]} 65... Rh6 {[%clk
0:00:20.8]} 66. Kxg3 {[%clk 0:00:12.3]} 66... Kxe4 {[%clk 0:00:21.1]} 67. Bd5+
{[%clk 0:00:11.9]} 67... Kxd5 {[%clk 0:00:20.2]} 68. h8=Q {[%clk 0:00:12.8]} 1-0

[Event "Late-Titled-Tuesday-Blitz-September-26-2023"]
[Site "Chess.com"]
[Date "2023.09.26"]
[Round "2"]
[White "dropstoneDP"]
[Black "HamedWafa4"]
[Result "1-0"]
[WhiteElo "3109"]
[BlackElo "2646"]
[TimeControl "180+1"]
[EndTime "14:18:42 PDT"]
[Termination "dropstoneDP won by resignation"]

1. e4 {[%clk 0:02:59.4]} 1... e5 {[%clk 0:02:58.6]} 2. Nf3 {[%clk 0:02:58.1]}
2... Nc6 {[%clk 0:02:58.2]} 3. Bb5 {[%clk 0:02:58.1]} 3... a6 {[%clk 0:02:58]}
4. Ba4 {[%clk 0:02:58.2]} 4... Nf6 {[%clk 0:02:57.5]} 5. O-O {[%clk 0:02:58]}
5... Be7 {[%clk 0:02:57]} 6. Re1 {[%clk 0:02:57.6]} 6... b5 {[%clk 0:02:55.9]}
7. Bb3 {[%clk 0:02:57.7]} 7... O-O {[%clk 0:02:54.8]} 8. c3 {[%clk 0:02:57.4]}
8... d5 {[%clk 0:02:53.9]} 9. exd5 {[%clk 0:02:57.8]} 9... Nxd5 {[%clk
0:02:53.7]} 10. Nxe5 {[%clk 0:02:58.2]} 10... Nxe5 {[%clk 0:02:53.6]} 11. Rxe5
{[%clk 0:02:59.1]} 11... Nf6 {[%clk 0:02:53.5]} 12. d4 {[%clk 0:02:57.5]} 12...
Bd6 {[%clk 0:02:52]} 13. Re1 {[%clk 0:02:55.9]} 13... Ng4 {[%clk 0:02:51.3]} 14.
h3 {[%clk 0:02:52.6]} 14... Bh2+ {[%clk 0:02:49.7]} 15. Kf1 {[%clk 0:02:51.9]}
15... Nxf2 {[%clk 0:02:49.2]} 16. Qf3 {[%clk 0:02:36.2]} 16... Nh1 {[%clk
0:02:48.2]} 17. Bf4 {[%clk 0:02:12.3]} 17... Bb7 {[%clk 0:02:46.4]} 18. d5
{[%clk 0:02:12.6]} 18... Bxf4 {[%clk 0:02:45.8]} 19. Qxf4 {[%clk 0:02:13.5]}
19... g5 {[%clk 0:02:45.7]} 20. Qe5 {[%clk 0:01:38.6]} 20... Re8 {[%clk
0:02:32.5]} 21. Qxe8+ {[%clk 0:01:37.1]} 21... Qxe8 {[%clk 0:02:33.4]} 22. Rxe8+
{[%clk 0:01:37.5]} 22... Rxe8 {[%clk 0:02:34.2]} 23. Nd2 {[%clk 0:00:53.8]}
23... Ng3+ {[%clk 0:02:31.5]} 24. Kf2 {[%clk 0:00:53.8]} 24... Re2+ {[%clk
0:02:25.8]} 25. Kxg3 {[%clk 0:00:54.7]} 25... Rxd2 {[%clk 0:02:26.5]} 26. c4
{[%clk 0:00:53.6]} 26... bxc4 {[%clk 0:02:21]} 27. Bxc4 {[%clk 0:00:54.5]} 27...
Bxd5 {[%clk 0:02:21.2]} 28. Bxd5 {[%clk 0:00:49.2]} 28... Rxd5 {[%clk
0:02:22.1]} 29. Rc1 {[%clk 0:00:49.2]} 29... Rd2 {[%clk 0:02:19.5]} 30. Rxc7
{[%clk 0:00:42.3]} 30... Rxb2 {[%clk 0:02:19.3]} 31. Rc5 {[%clk 0:00:38.6]}
31... Rb5 {[%clk 0:02:13.5]} 32. Rc4 {[%clk 0:00:21.5]} 32... Ra5 {[%clk
0:02:13.3]} 33. a4 {[%clk 0:00:21.3]} 33... Kg7 {[%clk 0:02:13.9]} 34. h4 {[%clk
0:00:21.5]} 34... h6 {[%clk 0:02:12]} 35. hxg5 {[%clk 0:00:21.2]} 35... hxg5
{[%clk 0:02:11.1]} 36. Kf3 {[%clk 0:00:21.4]} 36... Kg6 {[%clk 0:02:11]} 37. g4
{[%clk 0:00:21.7]} 37... f6 {[%clk 0:02:07.3]} 38. Ke4 {[%clk 0:00:15.6]} 38...
Re5+ {[%clk 0:02:04.6]} 39. Kd4 {[%clk 0:00:15.4]} 39... Re1 {[%clk 0:02:01.6]}
40. Kc5 {[%clk 0:00:13.8]} 40... f5 {[%clk 0:01:55.4]} 41. gxf5+ {[%clk
0:00:06.8]} 41... Kxf5 {[%clk 0:01:55.2]} 42. Rb4 {[%clk 0:00:01.7]} 42... g4
{[%clk 0:01:52.8]} 43. Rb8 {[%clk 0:00:02.5]} 43... Kf4 {[%clk 0:01:47.6]} 44.
Rf8+ {[%clk 0:00:01.8]} 44... Kg3 {[%clk 0:01:46.2]} 45. Rf6 {[%clk 0:00:02.4]}
45... a5 {[%clk 0:01:44.5]} 46. Rf5 {[%clk 0:00:02.3]} 46... Re8 {[%clk
0:01:37.3]} 47. Kb6 {[%clk 0:00:02]} 47... Kh4 {[%clk 0:01:33.1]} 48. Kxa5
{[%clk 0:00:01.1]} 48... g3 {[%clk 0:01:33.7]} 49. Rf7 {[%clk 0:00:01.5]} 49...
Rg8 {[%clk 0:01:33.1]} 50. Rf1 {[%clk 0:00:02.1]} 50... Kh3 {[%clk 0:01:31]} 51.
Rg1 {[%clk 0:00:03]} 51... Kh2 {[%clk 0:01:30.6]} 52. Rxg3 {[%clk 0:00:03.1]}
52... Kxg3 {[%clk 0:01:31.5]} 53. Kb6 {[%clk 0:00:03.8]} 53... Kf4 {[%clk
0:01:30.7]} 54. a5 {[%clk 0:00:04.7]} 54... Ke5 {[%clk 0:01:24.1]} 55. a6 {[%clk
0:00:05.6]} 55... Rg6+ {[%clk 0:01:13.4]} 56. Kb7 {[%clk 0:00:05.8]} 56... Rg7+
{[%clk 0:01:11.4]} 57. Kb6 {[%clk 0:00:06.1]} 57... Rg6+ {[%clk 0:01:09.9]} 58.
Kb7 {[%clk 0:00:06.2]} 58... Kd5 {[%clk 0:01:10.5]} 59. a7 {[%clk 0:00:07.1]}
59... Rg7+ {[%clk 0:01:09.2]} 60. Kb6 {[%clk 0:00:07.6]} 60... Rg8 {[%clk
0:01:07.1]} 61. Kb7 {[%clk 0:00:07.8]} 61... Kc5 {[%clk 0:01:06.6]} 62. a8=Q
{[%clk 0:00:08.7]} 62... Rg7+ {[%clk 0:01:06.8]} 63. Ka6 {[%clk 0:00:08.7]}
63... Rg6+ {[%clk 0:01:01.2]} 64. Ka5 {[%clk 0:00:08.2]} 64... Rd6 {[%clk
0:00:54.8]} 65. Qf8 {[%clk 0:00:07.2]} 65... Kd5 {[%clk 0:00:55]} 66. Kb5 {[%clk
0:00:07.7]} 66... Re6 {[%clk 0:00:55.6]} 67. Qf3+ {[%clk 0:00:07.4]} 67... Kd6
{[%clk 0:00:55.9]} 68. Kc4 {[%clk 0:00:07.3]} 68... Re5 {[%clk 0:00:55.6]} 69.
Qf6+ {[%clk 0:00:07.4]} 69... Re6 {[%clk 0:00:56]} 70. Qd8+ {[%clk 0:00:07.7]}
70... Ke5 {[%clk 0:00:56.3]} 71. Qg5+ {[%clk 0:00:07.2]} 71... Kd6 {[%clk
0:00:56.6]} 72. Kd4 {[%clk 0:00:07.7]} 72... Re7 {[%clk 0:00:56.4]} 73. Qf6+
{[%clk 0:00:07.7]} 73... Re6 {[%clk 0:00:56.8]} 74. Qd8+ {[%clk 0:00:07.2]}
74... Kc6 {[%clk 0:00:56.8]} 75. Qd5+ {[%clk 0:00:08.1]} 1-0